bitfinex-derivatives/quotes_SOLF0:USTF0_20250823
["timestamp","ask_amount","ask_price","bid_price","bid_amount"]
[1755928263638,92.81737706,207.6,207.59,3.08]
[1755928263841,92.81737706,207.6,207.59,9.00359692]
[1755928264138,100.25637706,207.6,207.59,6.40359692]
[1755928264345,92.81737706,207.6,207.59,4.56264948]
[1755928264744,92.81737706,207.6,207.59,6.40841375]
[1755928265952,90.57937707,207.6,207.59,9.64841375]
[1755928266145,90.57937707,207.6,207.59,14.46880355]
[1755928266444,7.4369,207.69,207.59,14.46880355]
[1755928266645,7.4369,207.69,207.6,6.40960355]
[1755928266846,7.4369,207.69,207.61,6.40960355]
[1755928267147,7.4369,207.69,207.62,4.56264948]
[1755928267348,7.4369,207.69,207.59,7.5792]
[1755928267548,7.4369,207.69,207.6,6.41352656]
[1755928267740,7.4369,207.69,207.61,6.41352656]
[1755928267945,7.4369,207.69,207.62,4.56685613]
[1755928268250,2.62,207.69,207.6,4.8187]
[1755928268448,2.62,207.69,207.61,6.41224115]
[1755928268654,24.0758,207.77,207.64,4.8179]
[1755928268655,2.78,207.73,207.64,4.8179]
[1755928268853,2.78,207.73,207.65,6.41147624]
[1755928269052,2.78,207.73,207.66,4.56594091]
[1755928269352,2.78,207.73,207.67,4.56594091]
[1755928269555,4.8156,207.75,207.68,4.56594091]
[1755928269853,2.78,207.72,207.64,4.8179]
[1755928270052,2.78,207.72,207.65,6.6170573]
[1755928270248,2.78,207.72,207.66,6.6170573]
[1755928270450,2.78,207.72,207.67,7.53113521]
[1755928270648,2.78,207.72,207.68,4.77113521]
[1755928270851,2.78,207.72,207.69,4.77113521]
[1755928271054,2.78,207.72,207.7,4.77113521]
[1755928271251,2.78,207.72,207.67,2.76]
[1755928271456,2.78,207.72,207.68,4.77273554]
[1755928271663,2.78,207.72,207.69,4.77273554]
[1755928271855,2.78,207.73,207.63,7.5781]
[1755928272058,2.78,207.73,207.64,11.29363848]
[1755928272257,2.78,207.73,207.65,9.44688971]
[1755928272564,2.78,207.73,207.66,4.67344506]
[1755928272767,2.78,207.73,207.59,2.76]
[1755928272955,2.78,207.68,207.6,10.8980781]
[1755928273256,2.78,207.68,207.59,2.76]
[1755928273257,2.78,207.68,207.61,9.04993452]
[1755928273465,2.78,207.68,207.62,4.6768089]
[1755928273661,127.26,207.69,207.63,4.6768089]
[1755928273662,2.78,207.67,207.63,4.6768089]
[1755928273966,4.8173,207.68,207.64,4.6768089]
[1755928274163,2.78,207.66,207.65,4.6768089]
[1755928274758,2.78,207.66,207.59,2.76]
[1755928274958,2.78,207.66,207.6,11.05276911]
[1755928275159,2.78,207.66,207.61,11.05276911]
[1755928275360,2.78,207.66,207.62,9.20540999]
[1755928275665,2.78,207.66,207.63,9.20540999]
[1755928275865,2.78,207.66,207.64,4.49641307]
[1755928276060,2.78,207.66,207.65,4.49641307]
[1755928279270,2.78,207.75,207.65,4.49641307]
[1755928279462,2.78,207.82,207.67,2.76]
[1755928279658,127.18,207.81,207.69,2.76]
[1755928279862,127.18,207.81,207.7,9.12283691]
[1755928280066,127.18,207.81,207.71,9.12283691]
[1755928280266,127.18,207.81,207.69,2.76]
[1755928280267,127.18,207.81,207.72,4.49641307]
[1755928280461,4.8145,207.8,207.73,4.49641307]
[1755928280671,4.8145,207.8,207.74,4.49641307]
[1755928280968,127.18,207.81,207.75,4.49641307]
[1755928281266,2.78,207.8,207.76,4.49641307]
[1755928281469,2.78,207.8,207.77,4.49641307]
[1755928281768,2.78,207.8,207.78,4.49641307]
[1755928281963,2.78,207.87,207.79,4.70824646]
[1755928282164,2.78,207.99,207.83,5.9719194]
[1755928282475,2.78,207.99,207.84,12.13258852]
[1755928282767,127.14,207.98,207.85,11.20774776]
[1755928282960,127.14,207.98,207.86,9.37258852]
[1755928283157,2.78,207.99,207.88,2.76]
[1755928283459,127.14,208.01,207.9,2.76]
[1755928283664,127.14,208.01,207.91,4.70824646]
[1755928283868,127.14,208.01,207.92,4.6735415]
[1755928284066,2.78,208.03,207.93,9.64512635]
[1755928284272,129.92,208.03,207.94,4.6735415]
[1755928284472,129.92,208.03,207.9,2.76]
[1755928284473,129.92,208.03,207.95,4.6735415]
[1755928284666,129.92,208.03,207.96,4.6735415]
[1755928284971,2.78,208.03,207.97,4.87667958]
[1755928285171,2.78,208.02,207.98,4.87702925]
[1755928285369,2.78,208.02,207.99,4.87702925]
[1755928285568,2.78,208.02,207.93,2.76]
[1755928285770,2.78,208.02,207.94,4.87049053]
[1755928285969,2.78,208.02,207.95,4.87049053]
[1755928286267,2.78,208.02,207.96,4.87049053]
[1755928286466,2.78,208.02,207.93,2.76]
[1755928286467,2.78,208.03,207.97,4.87049053]
[1755928286670,2.78,208.01,207.98,4.87049053]
[1755928286969,2.78,208.0,207.99,2.63249053]
[1755928287175,2.78,208.0,207.88,2.76]
[1755928287376,2.78,208.0,207.89,4.89390435]
[1755928287569,4.811,207.95,207.88,2.76]
[1755928287772,4.811,207.95,207.89,4.89450635]
[1755928288068,4.811,207.95,207.88,2.76]
[1755928288271,4.811,207.95,207.89,4.8936811]
[1755928288473,4.811,207.95,207.88,2.76]
[1755928288664,4.811,207.95,207.89,4.89073957]
[1755928288869,4.811,207.95,207.88,2.76]
[1755928289067,2.78,207.93,207.84,2.76]
[1755928289268,151.0722,207.97,207.85,4.89153415]
[1755928289269,153.8522,207.97,207.85,4.89153415]
[1755928289470,153.8522,207.97,207.86,4.89153415]
[1755928289668,153.8522,207.97,207.87,4.89153415]
[1755928289872,4.811,207.95,207.88,4.89153415]
[1755928290068,4.811,207.95,207.84,2.76]
[1755928290278,4.811,207.95,207.85,4.89119536]
[1755928290473,4.811,207.95,207.86,4.89119536]
[1755928290682,4.811,207.95,207.87,4.89119536]
[1755928290881,4.811,207.95,207.88,4.89119536]
[1755928291177,4.811,207.95,207.84,2.76]
[1755928291378,4.811,207.95,207.85,4.8879489]
[1755928291576,28.8656,207.95,207.86,4.8876765]
[1755928291780,4.8115,207.93,207.87,4.8876765]
[1755928291974,4.8115,207.93,207.84,2.76]
[1755928292171,2.78,207.93,207.85,4.8871072]
[1755928292373,2.78,207.93,207.84,2.76]
[1755928292577,2.78,207.93,207.85,4.8862707]
[1755928292884,2.78,207.93,207.84,2.76]
[1755928293580,28.8711,207.91,207.84,2.76]
[1755928293780,28.8711,207.91,207.85,4.88632519]
[1755928293975,28.8711,207.91,207.84,2.76]
[1755928294379,4.8123,207.89,207.84,2.76]
[1755928294683,24.0605,207.9,207.78,2.73]
[1755928294875,24.0605,207.9,207.79,4.88653575]
[1755928295076,24.0605,207.9,207.78,2.73]
[1755928295574,4.8128,207.87,207.78,2.73]
[1755928297578,26.5839,207.87,207.78,2.73]
[1755928298576,4.8137,207.83,207.78,2.73]
[1755928298783,7.3337,207.83,207.78,2.73]
[1755928299682,4.8142,207.81,207.73,2.73]
[1755928299877,4.8142,207.81,207.74,4.57021658]
[1755928300075,4.8142,207.81,207.73,2.73]
[1755928300283,4.8142,207.81,207.74,4.56934736]
[1755928300482,4.8142,207.81,207.73,2.73]
[1755928300780,2.52,207.83,207.74,4.57076171]
[1755928300981,2.52,207.83,207.75,4.57011945]
[1755928301172,24.0639,207.87,207.73,2.73]
[1755928301379,2.52,207.86,207.74,4.57030164]
[1755928301683,4.8137,207.83,207.75,4.57030164]
[1755928301983,24.0661,207.85,207.73,2.73]
[1755928302182,24.0661,207.85,207.74,4.57331824]
[1755928302482,4.8142,207.81,207.73,2.73]
[1755928302681,4.8142,207.81,207.74,4.57314241]
[1755928302883,4.8142,207.81,207.75,4.57314241]
[1755928303077,4.8142,207.81,207.73,2.73]
[1755928303275,4.8142,207.81,207.72,126.92]
[1755928303276,4.8135,207.84,207.75,2.73]
[1755928303480,4.8135,207.84,207.76,4.57157618]
[1755928303682,24.0661,207.85,207.77,4.57157618]
[1755928303883,24.0661,207.85,207.78,4.57157618]
[1755928304085,24.0661,207.85,207.75,2.73]
[1755928304383,24.0661,207.85,207.76,4.57326964]
[1755928304574,24.0661,207.85,207.77,4.57326964]
[1755928304779,24.0661,207.85,207.75,2.73]
[1755928304973,24.0661,207.85,207.76,4.57409839]
[1755928304974,4.8146,207.79,207.76,4.57409839]
[1755928305180,7.3346,207.79,207.7,2.73]
[1755928305381,2.52,207.79,207.71,9.32303718]
[1755928305577,126.8,207.83,207.72,4.57582857]
[1755928305878,2.52,207.82,207.65,2.73]
[1755928306186,26.5977,207.75,207.66,4.57955508]
[1755928306476,26.5977,207.75,207.67,4.57955508]
[1755928306685,26.5977,207.75,207.65,2.73]
[1755928306686,2.52,207.73,207.6,2.73]
[1755928306879,2.52,207.73,207.61,9.22466693]
[1755928307084,2.52,207.73,207.62,9.22466693]
[1755928307384,2.52,207.73,207.63,4.58220906]
[1755928307586,2.52,207.69,207.64,4.58220906]
[1755928307777,2.52,207.71,207.65,4.58220906]
[1755928307975,24.0812,207.72,207.66,4.58220906]
[1755928308172,26.6059,207.68,207.55,2.73]
[1755928308382,2.52,207.78,207.58,33.51997975]
[1755928308581,2.52,207.78,207.6,2.73]
[1755928308776,4.8164,207.71,207.62,2.73]
[1755928308979,2.52,207.73,207.64,2.73]
[1755928309178,2.52,207.73,207.65,4.58301687]
[1755928309379,2.52,207.73,207.66,4.58301687]
[1755928309579,2.52,207.73,207.67,4.58301687]
[1755928309775,24.0701,207.82,207.68,4.58363855]
[1755928309985,2.52,207.79,207.69,7.31363855]
[1755928310188,2.52,207.79,207.7,4.58363855]
[1755928310384,2.52,207.79,207.71,4.58363855]
[1755928310684,2.52,207.79,207.63,9.42267975]
[1755928310685,7.3353,207.76,207.72,4.58363855]
[1755928310885,2.52,207.76,207.67,2.73]
[1755928311081,2.52,207.76,207.68,4.58487898]
[1755928311276,4.8158,207.74,207.69,4.58487898]
[1755928311479,4.8158,207.74,207.7,4.58487898]
[1755928311679,4.8158,207.74,207.67,2.73]
[1755928311984,4.8158,207.74,207.68,4.58618621]
[1755928312181,4.8158,207.74,207.69,4.53746226]
[1755928312378,4.8158,207.74,207.67,2.73]
[1755928312579,2.52,207.72,207.68,4.53851099]
[1755928312783,2.52,207.72,207.63,2.73]
[1755928312979,24.0778,207.75,207.64,9.18973501]
[1755928313186,4.8159,207.74,207.65,4.53843763]
[1755928313387,4.8159,207.74,207.66,4.53843763]
[1755928313688,4.8159,207.74,207.67,4.53843763]
[1755928313889,4.8159,207.74,207.66,2.73]
[1755928313890,4.8159,207.74,207.68,4.53843763]
[1755928314083,4.8159,207.74,207.69,4.53843763]
[1755928314387,4.8159,207.74,207.66,2.73]
[1755928314590,4.8163,207.72,207.67,4.53897978]
[1755928314789,4.8163,207.72,207.68,4.53897978]
[1755928315086,4.8163,207.72,207.68,2.73]
[1755928316389,4.8167,207.7,207.61,2.73]
[1755928316587,4.8167,207.7,207.62,9.1935484]
[1755928316792,4.8167,207.7,207.63,9.1935484]
[1755928316993,4.8167,207.7,207.64,4.54032637]
[1755928317190,4.8172,207.68,207.65,4.54032637]
[1755928317384,4.8172,207.68,207.66,4.54032637]
[1755928317688,4.8176,207.66,207.58,136.18267975]
[1755928317892,4.8176,207.66,207.62,2.73]
[1755928318092,4.8176,207.66,207.63,4.54299398]
[1755928318293,4.8176,207.66,207.64,4.54354396]
[1755928318494,4.8176,207.66,207.65,4.54354396]
[1755928318688,4.8176,207.66,207.65,4.54334469]
[1755928319095,4.8176,207.66,207.65,4.54288664]
[1755928319295,4.8176,207.66,207.62,2.73]
[1755928319492,4.8176,207.66,207.63,4.54397199]
[1755928319699,4.8176,207.66,207.57,2.73]
[1755928319700,4.8181,207.64,207.57,2.73]
[1755928319897,4.8181,207.64,207.58,9.19934812]
[1755928320095,4.8181,207.64,207.59,11.92934812]
[1755928320292,4.8186,207.62,207.6,4.54315703]
[1755928320492,7.3386,207.62,207.61,4.54315703]
[1755928320693,2.52,207.62,207.54,326.27]
[1755928320892,2.52,207.62,207.55,9.20399126]
[1755928321197,2.52,207.62,207.56,9.20318275]
[1755928321393,2.52,207.58,207.49,2.73]
[1755928321592,2.52,207.58,207.5,4.54720583]
[1755928321892,2.52,207.58,207.51,4.54399486]
[1755928322092,2.52,207.58,207.44,2.73]
[1755928322298,2.52,207.58,207.45,4.54081004]
[1755928322495,2.52,207.58,207.46,4.54081004]
[1755928322692,2.52,207.58,207.47,4.54081004]
[1755928322892,2.52,207.58,207.48,4.54081004]
[1755928323093,4.8199,207.56,207.49,4.54081004]
[1755928323293,4.8199,207.56,207.5,4.54081004]
[1755928323497,7.5499,207.56,207.51,4.54081004]
[1755928323696,4.8205,207.54,207.44,2.73]
[1755928323895,4.8205,207.54,207.45,4.53911743]
[1755928324094,4.8205,207.54,207.46,4.53911743]
[1755928324296,4.8209,207.52,207.47,4.53911743]
[1755928324498,4.8209,207.52,207.48,7.12911743]
[1755928324799,4.8209,207.52,207.49,4.53911743]
[1755928324996,4.8203,207.55,207.5,4.53911743]
[1755928325196,4.8203,207.55,207.48,2.59]
[1755928325398,24.0951,207.6,207.49,4.53269716]
[1755928325695,4.82,207.56,207.5,4.53269716]
[1755928325899,4.82,207.56,207.51,7.12269716]
[1755928326101,4.82,207.56,207.52,4.53269716]
[1755928326304,4.82,207.56,207.51,2.59]
[1755928326803,4.82,207.56,207.52,4.52836811]
[1755928327000,24.0964,207.59,207.36,323.72]
[1755928327199,2.73,207.58,207.42,7.12191682]
[1755928327394,2.73,207.58,207.43,4.53191682]
[1755928327697,9.42267975,207.6,207.44,4.53191682]
[1755928327698,2.73,207.49,207.44,4.53191682]
[1755928327898,2.73,207.49,207.38,2.59]
[1755928328204,2.73,207.49,207.4,4.53294798]
[1755928328403,4.8219,207.48,207.41,4.53294798]
[1755928328604,4.8219,207.48,207.42,4.53294798]
[1755928328809,2.73,207.49,207.43,4.53294798]
[1755928329002,7.5515,207.49,207.38,2.59]
[1755928329205,7.5515,207.49,207.4,4.53100863]
[1755928329504,7.5515,207.49,207.41,4.53100863]
[1755928329708,7.5515,207.49,207.42,4.53100863]
[1755928329902,7.5515,207.49,207.43,4.53100863]
[1755928330109,4.821,207.52,207.45,2.59]
[1755928330309,4.821,207.52,207.46,4.52822584]
[1755928330509,4.821,207.52,207.45,2.59]
[1755928330510,24.1033,207.53,207.47,4.5282418]
[1755928330710,24.1033,207.53,207.45,2.59]
[1755928330909,4.8213,207.5,207.46,4.52812586]
[1755928331108,4.8213,207.5,207.39,105.8978904]
[1755928331307,4.8213,207.5,207.46,2.59]
[1755928331714,24.099,207.57,207.47,4.52614765]
[1755928332012,24.099,207.57,207.48,7.11614765]
[1755928332310,4.8205,207.54,207.49,4.52614765]
[1755928332610,4.8205,207.54,207.5,2.59]
[1755928332803,4.8205,207.54,207.51,4.52560476]
[1755928333005,4.8205,207.54,207.5,2.59]
[1755928333207,4.8205,207.54,207.51,4.52545326]
[1755928333409,4.8205,207.54,207.5,2.59]
[1755928333711,4.8205,207.54,207.51,4.52664458]
[1755928333912,4.8205,207.54,207.52,4.52685652]
[1755928334103,4.8205,207.54,207.5,2.59]
[1755928334307,4.8205,207.54,207.51,4.52657369]
[1755928334507,4.8205,207.54,207.52,4.52657369]
[1755928334809,2.73,207.67,207.53,4.52965634]
[1755928335010,2.73,207.67,207.54,7.11965634]
[1755928335308,24.0884,207.66,207.55,4.52965634]
[1755928335514,24.0884,207.66,207.56,4.52965634]
[1755928335711,24.0884,207.66,207.54,2.59]
[1755928335921,4.8185,207.62,207.55,4.5293693]
[1755928336215,2.73,207.67,207.57,2.59]
[1755928336517,2.73,207.67,207.58,4.53053034]
[1755928336712,2.73,207.67,207.59,4.53053034]
[1755928337017,2.73,207.67,207.6,4.53053034]
[1755928337317,26.8171,207.67,207.61,4.53053034]
[1755928337614,26.8171,207.67,207.62,4.5331628]
[1755928337818,4.8181,207.64,207.57,2.59]
[1755928338018,24.0847,207.69,207.58,4.53277708]
[1755928338222,26.8158,207.68,207.59,4.53277708]
[1755928338410,4.8184,207.63,207.6,4.53277708]
[1755928338615,2.73,207.7,207.62,2.59]
[1755928338811,24.0789,207.74,207.63,4.53277708]
[1755928339119,4.8167,207.7,207.64,4.53277708]
[1755928339317,12.3615,207.75,207.66,2.59]
[1755928339520,12.3615,207.75,207.67,4.53277708]
[1755928339711,12.3615,207.75,207.68,4.53277708]
[1755928339911,12.3615,207.75,207.69,4.53277708]
[1755928340116,12.3615,207.75,207.66,2.59]
[1755928340423,12.3615,207.75,207.67,4.53596393]
[1755928340725,2.73,207.84,207.69,12.01267975]
[1755928340917,2.73,207.84,207.7,17.18681185]
[1755928341122,2.73,207.84,207.71,10.28592835]
[1755928341322,2.73,207.84,207.72,6.36164128]
[1755928341517,2.73,207.84,207.73,4.53596393]
[1755928341718,4.814,207.82,207.74,4.53596393]
[1755928341916,2.73,207.84,207.75,4.53596393]
[1755928342112,2.73,207.84,207.76,4.53596393]
[1755928342312,2.73,207.84,207.74,2.59]
[1755928342313,4.8136,207.83,207.77,4.53596393]
[1755928342512,2.73,207.82,207.78,4.53596393]
[1755928342712,2.73,207.82,207.79,4.53596393]
[1755928342922,2.73,207.82,207.8,4.53596393]
[1755928343125,2.73,207.82,207.74,2.59]
[1755928343423,2.73,207.82,207.75,4.51621054]
[1755928343624,2.73,207.82,207.76,4.51621054]
[1755928343816,4.8142,207.81,207.77,4.51621054]
[1755928344017,2.73,207.8,207.69,12.01267975]
[1755928344315,2.73,207.8,207.7,4.51785533]
[1755928344513,2.73,207.8,207.71,4.51785533]
[1755928344714,2.73,207.8,207.72,4.51785533]
[1755928345026,2.73,207.8,207.73,4.51797332]
[1755928345221,2.73,207.8,207.74,4.51797332]
[1755928345421,2.73,207.8,207.75,4.51884976]
[1755928345617,26.7916,207.89,207.77,2.59]
[1755928345820,26.7916,207.89,207.78,4.51884976]
[1755928346021,26.7916,207.89,207.79,4.51884976]
[1755928346221,4.8135,207.84,207.8,4.51884976]
[1755928346527,4.8135,207.84,207.77,2.59]
[1755928346724,4.8135,207.84,207.78,4.51475496]
[1755928346928,4.8139,207.82,207.79,4.51475496]
[1755928347124,4.8139,207.82,207.8,4.51475496]
[1755928347322,4.8139,207.82,207.81,4.51475496]
[1755928347728,2.73,207.87,207.81,4.51475496]
[1755928347923,2.73,207.87,207.77,2.59]
[1755928348125,2.73,207.87,207.78,4.51349762]
[1755928348325,2.73,207.87,207.79,4.51349762]
[1755928348526,2.73,207.87,207.8,4.51349762]
[1755928348727,2.73,207.87,207.81,4.51349762]
[1755928348926,2.73,207.87,207.77,2.59]
[1755928349231,4.8131,207.86,207.78,4.51356697]
[1755928349524,4.8123,207.89,207.79,4.51356697]
[1755928349732,4.8123,207.89,207.8,7.10356697]
[1755928349932,4.8123,207.89,207.81,4.51356697]
[1755928350125,4.8123,207.89,207.82,4.51356697]
[1755928350324,4.8123,207.89,207.83,4.51356697]
[1755928350526,4.8123,207.89,207.8,2.59]
[1755928350730,4.8123,207.89,207.81,4.49676389]
[1755928350931,4.8123,207.89,207.8,2.59]
[1755928351926,4.8128,207.87,207.8,2.59]
[1755928352333,24.0649,207.86,207.72,2.59]
[1755928352528,24.0649,207.86,207.73,4.48841569]
[1755928352728,24.0649,207.86,207.74,4.48841569]
[1755928352932,24.0649,207.86,207.75,4.48841569]
[1755928353134,24.0649,207.86,207.76,4.48841569]
[1755928353328,24.0649,207.86,207.77,4.48841569]
[1755928353528,4.8137,207.83,207.75,2.59]
[1755928353735,4.8137,207.83,207.76,4.48755478]
[1755928353937,4.8137,207.83,207.75,2.59]
[1755928354137,4.8137,207.83,207.76,4.48818715]
[1755928354333,4.8137,207.83,207.77,4.48818715]
[1755928354533,4.8137,207.83,207.75,2.59]
[1755928354731,4.8137,207.83,207.76,4.48671896]
[1755928354940,4.8137,207.83,207.77,4.48671896]
[1755928355239,4.8137,207.83,207.75,2.59]
[1755928355540,4.8137,207.83,207.76,4.48568431]
[1755928355741,4.8137,207.83,207.77,4.48568431]
[1755928355945,4.8137,207.83,207.75,2.59]
[1755928356143,4.8137,207.83,207.76,4.48077391]
[1755928356338,4.8142,207.81,207.75,2.59]
[1755928356534,2.61,207.83,207.68,2.56]
[1755928356740,2.61,207.83,207.7,2.56]
[1755928356942,4.8149,207.78,207.71,4.4810764]
[1755928357131,4.8149,207.78,207.72,4.48007298]
[1755928357439,4.8149,207.78,207.7,2.56]
[1755928357640,4.8149,207.78,207.71,4.47694803]
[1755928357839,4.8149,207.78,207.72,4.47694803]
[1755928358036,4.8149,207.78,207.7,2.56]
[1755928358239,26.6821,207.8,207.71,4.47759936]
[1755928358441,26.6821,207.8,207.68,2.56]
[1755928358739,26.6821,207.8,207.69,4.47870721]
[1755928359038,24.0733,207.79,207.7,4.47870721]
[1755928359239,2.61,207.77,207.68,2.56]
[1755928359437,2.61,207.77,207.69,4.48237374]
[1755928359737,4.8162,207.72,207.68,2.56]
[1755928360440,24.0774,207.76,207.69,2.56]
[1755928361041,26.6854,207.77,207.69,2.56]
[1755928362540,4.8157,207.74,207.69,2.56]
[1755928362741,4.8157,207.74,207.7,2.56]
[1755928362941,4.8157,207.74,207.64,131.278]
[1755928363245,4.8157,207.74,207.71,2.56]
[1755928364041,4.8152,207.77,207.65,2.56]
[1755928364250,4.8152,207.77,207.67,2.56]
[1755928364434,4.8152,207.77,207.68,4.48308905]
[1755928364635,4.8152,207.77,207.69,7.04308905]
[1755928364841,4.8145,207.8,207.71,2.56]
[1755928365041,2.61,207.81,207.71,2.56]
[1755928366346,2.61,207.81,207.72,4.48942489]
[1755928366551,4.8148,207.78,207.71,2.56]
[1755928366743,4.8148,207.78,207.72,4.48818971]
[1755928366944,4.8148,207.78,207.71,2.56]
[1755928367143,4.8148,207.78,207.72,4.48818971]
[1755928367343,4.8148,207.78,207.71,2.56]
[1755928367544,4.8148,207.78,207.72,4.48945295]
[1755928367740,4.8148,207.78,207.71,2.56]
[1755928367947,4.8148,207.78,207.72,4.48987667]
[1755928368244,4.8148,207.78,207.71,2.56]
[1755928368448,4.8148,207.78,207.72,4.49088051]
[1755928368648,4.8148,207.78,207.71,2.56]
[1755928368838,7.4253,207.77,207.71,2.56]
[1755928369846,7.4253,207.77,207.72,4.49319467]
[1755928370054,7.4253,207.77,207.71,2.56]
[1755928370351,7.4253,207.77,207.72,4.49502215]
[1755928370652,7.4253,207.77,207.71,2.56]
[1755928370850,7.4253,207.77,207.72,4.49488875]
[1755928371052,7.4253,207.77,207.71,2.56]
[1755928371348,24.0709,207.81,207.67,4.8173]
[1755928371349,7.4255,207.75,207.67,2.56]
[1755928371547,2.61,207.75,207.68,4.4968978]
[1755928371852,2.61,207.75,207.69,4.4968978]
[1755928372052,2.61,207.74,207.7,4.4968978]
[1755928372248,2.61,207.74,207.71,4.48524938]
[1755928372551,7.4259,207.74,207.67,2.56]
[1755928372751,7.4259,207.74,207.68,4.48656335]
[1755928372952,7.4259,207.74,207.69,7.04656335]
[1755928373247,7.4259,207.74,207.7,4.48656335]
[1755928373452,7.4259,207.74,207.71,4.48656335]
[1755928373649,7.4259,207.74,207.72,4.48656335]
[1755928373851,7.4259,207.74,207.69,2.56]
[1755928374043,7.4259,207.74,207.7,4.49114956]
[1755928374243,7.4259,207.74,207.71,4.49114956]
[1755928374554,7.4259,207.74,207.72,4.49114956]
[1755928374753,7.4259,207.74,207.73,4.49114956]
[1755928375255,4.8159,207.74,207.73,4.50263619]
[1755928375852,7.4259,207.74,207.73,4.50263619]
[1755928379056,4.8159,207.74,207.73,4.51949038]
[1755928381262,4.8159,207.74,207.73,4.52930264]
[1755928382250,7.4259,207.74,207.73,4.52930264]
[1755928383556,4.8173,207.68,207.62,2.73]
[1755928383757,7.4473,207.68,207.63,12.89241861]
[1755928383960,7.4473,207.68,207.64,10.16241861]
[1755928384154,7.4473,207.68,207.65,10.16241861]
[1755928384362,4.8165,207.71,207.66,6.22354756]
[1755928384559,24.0803,207.73,207.67,6.22354756]
[1755928384861,2.63,207.72,207.63,2.73]
[1755928385161,2.63,207.72,207.64,10.15463393]
[1755928385459,2.63,207.72,207.65,10.15463393]
[1755928385653,2.63,207.76,207.67,2.73]
[1755928385962,2.63,207.76,207.68,6.21881179]
[1755928386162,2.63,207.76,207.69,1.83853843]
[1755928386357,2.63,207.76,207.7,1.83853843]
[1755928386562,4.8162,207.73,207.67,2.73]
[1755928386863,4.8162,207.73,207.69,2.73]
[1755928387164,24.0777,207.75,207.69,2.73]
[1755928387358,2.63,207.72,207.65,2.73]
[1755928387564,24.0777,207.75,207.66,10.1488459]
[1755928387763,24.0777,207.75,207.67,6.21524861]
[1755928387963,24.0777,207.75,207.68,6.21524861]
[1755928388265,24.0777,207.75,207.65,2.73]
[1755928388563,4.8166,207.71,207.66,6.21546879]
[1755928388759,2.63,207.73,207.64,2.73]
[1755928388964,2.63,207.73,207.65,1.83793805]
[1755928389165,2.63,207.73,207.64,2.73]
[1755928389564,2.63,207.73,207.56,323.62]
[1755928389565,2.63,207.73,207.58,2.73]
[1755928389761,2.63,207.73,207.59,10.15263546]
[1755928389969,2.63,207.73,207.61,2.73]
[1755928390171,2.63,207.73,207.62,6.21740754]
[1755928390363,2.63,207.73,207.63,8.94740754]
[1755928390665,2.63,207.73,207.63,2.73]
[1755928391162,4.8171,207.69,207.63,2.73]
[1755928391367,2.63,207.73,207.64,6.2163716]
[1755928391571,2.63,207.73,207.65,8.9475118]
[1755928391762,2.63,207.73,207.65,2.73]
[1755928391964,2.63,207.77,207.66,6.21743301]
[1755928392155,2.63,207.77,207.65,2.73]
[1755928392362,2.63,207.77,207.66,6.21729684]
[1755928392562,4.8161,207.73,207.66,4.8175]
[1755928392965,2.63,207.77,207.68,2.73]
[1755928393369,4.8149,207.78,207.7,2.73]
[1755928393667,26.7015,207.81,207.6,24.095]
[1755928393668,2.63,207.77,207.66,2.73]
[1755928393868,2.63,207.77,207.67,6.46495517]